fUSD/lending_fUSD_20250522
["ID","MTS","AMOUNT","RATE_DAILY","PERIOD"]
[362002020,1747932638042,-300.0,0.00032378,2]
[362002022,1747932638051,-204.0,0.00032563,2]
[362002024,1747932638060,-311.4519,0.00032676,2]
[362002026,1747932638070,-191.908534,0.00032686,4]
[362002027,1747932638079,-5000.0,0.000327,2]
[362002029,1747932638088,-732.75,0.00032753,2]
[362002031,1747932638098,-2563.78723673,0.00032775,2]
[362002034,1747932638113,-575.089875,0.00032775,2]
[362002036,1747932638128,-1057.6207184,0.00032775,2]
[362002040,1747932638154,-274.30018555,0.00032775,2]
[362002042,1747932638163,-1700.69981445,0.00032776,2]
[362002185,1747932639997,-201.21314462,0.000319,25]
[362002186,1747932640006,-201.21314462,0.00032424,26]
[362002187,1747932640017,-274.30018555,0.00032776,2]
[362002188,1747932640026,-1090.7533,0.00032776,2]
[362002189,1747932640036,-442.62116108,0.00032776,15]
[362002190,1747932640045,-304.7404865,0.00032792,2]
[362002191,1747932640054,-5000.0,0.000328,2]
[362002192,1747932640064,-22056.073522,0.00032866,2]
[362002388,1747932643266,-65247.849638,0.00032866,2]
[362002389,1747932643276,-242.7,0.00032866,2]
[362002391,1747932643286,-500.0,0.00032873,5]
[362002394,1747932643297,-501.06199401,0.00032873,5]
[362002396,1747932643308,-500.0,0.00032873,5]
[362002398,1747932643318,-267.37477981,0.00032873,5]
[362002400,1747932643328,-500.0,0.00032873,5]
[362002402,1747932643338,-212.06444913,0.00032873,5]
[362002404,1747932643347,-500.0,0.00032873,2]
[362002406,1747932643357,-500.0,0.00032873,5]
[362002408,1747932643367,-500.0,0.00032873,5]
[362002410,1747932643377,-2350.0,0.00032874,2]
[362002412,1747932643391,-29961.33086574,0.00032875,7]
[362002414,1747932643401,-165.97855715,0.00032875,2]
[362002416,1747932643410,-594.27170365,0.00032875,2]
[362002418,1747932643420,-420.0,0.00032876,5]
[362002420,1747932643429,-420.0,0.00032876,5]
[362002422,1747932643440,-420.0,0.00032876,5]
[362002424,1747932643449,-420.0,0.00032876,5]
[362002426,1747932643459,-420.0,0.00032876,5]
[362002428,1747932643468,-420.0,0.00032876,5]
[362002430,1747932643478,-420.0,0.00032876,5]
[362002432,1747932643488,-420.0,0.00032876,5]
[362002434,1747932643497,-803.27,0.00032876,5]
[362002436,1747932643506,-420.0,0.00032876,5]
[362002438,1747932643516,-420.0,0.00032876,5]
[362002440,1747932643525,-480.2,0.00032876,5]
[362002442,1747932643535,-420.0,0.00032876,5]
[362002444,1747932643544,-420.0,0.00032876,5]
[362002446,1747932643554,-420.0,0.00032876,5]
[362002448,1747932643563,-420.0,0.00032876,5]
[362002450,1747932643572,-420.0,0.00032876,5]
[362002452,1747932643582,-530.72,0.00032876,5]
[362002454,1747932643592,-766.53,0.00032876,5]
[362002456,1747932643602,-352.45790553,0.00032876,5]
[362002458,1747932643611,-420.0,0.00032876,5]
[362002460,1747932643621,-420.0,0.00032876,5]
[362002462,1747932643630,-452.76,0.00032876,5]
[362002464,1747932643639,-420.0,0.00032876,5]
[362002466,1747932643649,-420.0,0.00032876,5]
[362002468,1747932643658,-420.0,0.00032876,5]
[362002470,1747932643667,-420.0,0.00032876,5]
[362002472,1747932643677,-420.0,0.00032876,5]
[362002474,1747932643686,-420.0,0.00032876,5]
[362002476,1747932643695,-420.0,0.00032876,5]
[362002478,1747932643704,-621.0,0.00032876,5]
[362002480,1747932643714,-329.70774205,0.00032876,5]
[362002482,1747932643723,-420.0,0.00032876,5]
[362002484,1747932643732,-420.0,0.00032876,5]
[362002486,1747932643742,-420.0,0.00032876,5]
[362002488,1747932643752,-420.0,0.00032876,5]
[362002489,1747932643761,-420.0,0.00032876,5]
[362002491,1747932643771,-531.3,0.00032876,5]
[362002493,1747932643780,-33.8004966,0.00032876,5]
[362002530,1747932644122,-120.79687363,0.00032876,5]
[362002679,1747932645968,-240.65728466,0.00032876,5]
[362002680,1747932645978,-420.99,0.00032876,5]
[362002681,1747932645987,-420.0,0.00032876,5]
[362002682,1747932645996,-420.0,0.00032876,5]
[362002683,1747932646007,-420.0,0.00032876,5]
[362002684,1747932646017,-420.0,0.00032876,5]
[362002685,1747932646026,-420.0,0.00032876,5]
[362002686,1747932646036,-605.33,0.00032876,5]
[362002687,1747932646046,-420.0,0.00032876,5]
[362002688,1747932646055,-1000.0,0.00032876,5]
[362002689,1747932646065,-420.0,0.00032876,5]
[362002690,1747932646074,-420.0,0.00032876,5]
[362002691,1747932646084,-420.0,0.00032876,5]
[362002692,1747932646094,-420.0,0.00032876,5]
[362002693,1747932646104,-444.19,0.00032876,5]
[362002694,1747932646113,-532.95,0.00032876,5]
[362002695,1747932646122,-420.0,0.00032876,5]
[362002696,1747932646132,-557.06678363,0.00032876,5]
[362002697,1747932646143,-420.0,0.00032876,5]
[362002698,1747932646152,-420.0,0.00032876,5]
[362002699,1747932646162,-420.0,0.00032876,5]
[362002700,1747932646171,-239.72080157,0.00032876,5]
[362002701,1747932646180,-420.0,0.00032876,5]
[362002702,1747932646189,-420.0,0.00032876,5]
[362002703,1747932646199,-420.0,0.00032876,5]
[362002704,1747932646208,-420.0,0.00032876,5]
[362002705,1747932646217,-420.0,0.00032876,5]
[362002706,1747932646227,-342.53420713,0.00032876,5]
[362002707,1747932646236,-420.0,0.00032876,5]
[362002708,1747932646246,-420.0,0.00032876,5]
[362002709,1747932646255,-420.0,0.00032876,5]
[362002710,1747932646266,-420.0,0.00032876,5]
[362002711,1747932646276,-420.0,0.00032876,5]
[362002712,1747932646286,-476.29861515,0.00032876,5]
[362002713,1747932646300,-420.0,0.00032876,5]
[362002714,1747932646311,-424.99059717,0.00032876,5]
[362002715,1747932646321,-420.0,0.00032876,5]
[362002716,1747932646330,-718.73,0.00032876,5]
[362002717,1747932646339,-420.0,0.00032876,5]
[362002718,1747932646349,-420.0,0.00032876,5]
[362002719,1747932646359,-420.0,0.00032876,5]
[362002720,1747932646368,-420.0,0.00032876,5]
[362002721,1747932646377,-420.0,0.00032876,5]
[362002722,1747932646388,-420.0,0.00032876,5]
[362002723,1747932646398,-456.19,0.00032876,5]
[362002725,1747932646408,-420.0,0.00032876,5]
[362002727,1747932646417,-420.0,0.00032876,5]
[362002729,1747932646426,-420.0,0.00032876,5]
[362002731,1747932646436,-420.0,0.00032876,5]
[362002733,1747932646446,-420.0,0.00032876,5]
[362002735,1747932646455,-420.0,0.00032876,5]
[362002737,1747932646467,-719.71,0.00032876,5]
[362002738,1747932646476,-420.0,0.00032876,5]
[362002739,1747932646485,-420.0,0.00032876,5]
[362002740,1747932646495,-420.0,0.00032876,5]
[362002741,1747932646506,-420.0,0.00032876,5]
[362002742,1747932646516,-420.0,0.00032876,5]
[362002743,1747932646527,-420.0,0.00032876,5]
[362002744,1747932646536,-420.0,0.00032876,5]
[362002745,1747932646546,-420.0,0.00032876,5]
[362002746,1747932646555,-496.68,0.00032876,5]
[362002747,1747932646564,-420.0,0.00032876,5]
[362002748,1747932646573,-420.0,0.00032876,5]
[362002749,1747932646582,-422.54633,0.00032876,5]
[362002750,1747932646591,-420.0,0.00032876,5]
[362002751,1747932646601,-420.0,0.00032876,5]
[362002752,1747932646610,-420.0,0.00032876,5]
[362002753,1747932646621,-420.0,0.00032876,5]
[362002754,1747932646633,-421.50414263,0.00032876,5]
[362002755,1747932646643,-420.0,0.00032876,5]
[362002756,1747932646652,-420.0,0.00032876,5]
[362002757,1747932646662,-420.0,0.00032876,5]
[362002758,1747932646671,-432.87,0.00032876,5]
[362002759,1747932646680,-420.0,0.00032876,5]
[362002760,1747932646690,-420.0,0.00032876,5]
[362002761,1747932646699,-420.0,0.00032876,5]
[362002762,1747932646708,-420.0,0.00032876,5]
[362002763,1747932646717,-420.0,0.00032876,5]
[362002764,1747932646727,-420.0,0.00032876,5]
[362002765,1747932646737,-420.0,0.00032876,5]
[362002766,1747932646746,-2265.07697491,0.00032876,30]
[362002767,1747932646755,-420.0,0.00032876,5]
[362002768,1747932646971,-420.0,0.00032876,5]
[362002769,1747932646982,-420.0,0.00032876,5]
[362002770,1747932646993,-420.0,0.00032876,5]
[362002771,1747932647003,-420.0,0.00032876,5]
[362002772,1747932647012,-420.0,0.00032876,5]
[362002773,1747932647021,-420.0,0.00032876,5]
[362002774,1747932647031,-420.0,0.00032876,5]
[362002775,1747932647042,-420.0,0.00032876,5]
[362002776,1747932647052,-420.0,0.00032876,5]
[362002777,1747932647062,-420.0,0.00032876,5]
[362002778,1747932647072,-420.0,0.00032876,5]
[362002779,1747932647082,-420.0,0.00032876,5]
[362002780,1747932647092,-340.9065263,0.00032876,5]
[362002781,1747932647102,-420.0,0.00032876,5]
[362002782,1747932647112,-712.52,0.00032876,5]
[362002783,1747932647122,-499.22,0.00032876,5]
[362002784,1747932647131,-803.14,0.00032876,5]
[362002785,1747932647141,-420.0,0.00032876,5]
[362002786,1747932647151,-420.0,0.00032876,5]
[362002787,1747932647160,-190.04990764,0.00032876,5]
[362002788,1747932647170,-420.0,0.00032876,5]
[362002789,1747932647179,-420.0,0.00032876,5]
[362002790,1747932647188,-420.0,0.00032876,5]
[362002791,1747932647198,-420.0,0.00032876,5]
[362002792,1747932647207,-420.0,0.00032876,5]
[362002793,1747932647217,-569.25,0.00032876,5]
[362002794,1747932647227,-420.0,0.00032876,5]
[362002795,1747932647236,-420.0,0.00032876,5]
[362002796,1747932647246,-420.0,0.00032876,5]
[362002797,1747932647255,-420.0,0.00032876,5]
[362002798,1747932647264,-420.0,0.00032876,5]
[362002799,1747932647274,-420.0,0.00032876,5]
[362002800,1747932647284,-688.85,0.00032876,5]
[362002801,1747932647293,-420.0,0.00032876,5]
[362002802,1747932647306,-420.0,0.00032876,5]
[362002803,1747932647315,-420.0,0.00032876,5]
[362002804,1747932647324,-420.0,0.00032876,5]
[362002805,1747932647334,-420.0,0.00032876,5]
[362002806,1747932647343,-420.0,0.00032876,5]
[362002807,1747932647353,-420.0,0.00032876,5]
[362002808,1747932647362,-527.22,0.00032876,5]
[362002809,1747932647372,-420.0,0.00032876,5]
[362002810,1747932647384,-420.0,0.00032876,5]
[362002811,1747932647394,-420.0,0.00032876,5]
[362002812,1747932647406,-420.0,0.00032876,5]
[362002813,1747932647420,-420.0,0.00032876,5]
[362002814,1747932647434,-420.0,0.00032876,5]
[362002815,1747932647447,-439.88,0.00032876,5]
[362002816,1747932647459,-420.0,0.00032876,5]
[362002817,1747932647471,-420.0,0.00032876,5]
[362002818,1747932647483,-420.0,0.00032876,5]
[362002819,1747932647497,-420.0,0.00032876,5]
[362002820,1747932647512,-1000.0,0.00032876,30]
[362002821,1747932647525,-420.0,0.00032876,5]
[362002822,1747932647538,-420.0,0.00032876,5]
[362002823,1747932647551,-420.0,0.00032876,5]
[362002824,1747932647563,-420.0,0.00032876,5]
[362002825,1747932647577,-420.0,0.00032876,5]
[362002826,1747932647589,-420.0,0.00032876,5]
[362002827,1747932647601,-420.0,0.00032876,5]
[362002828,1747932647612,-422.44,0.00032876,5]
[362002829,1747932647623,-420.0,0.00032876,5]
[362002830,1747932647636,-420.0,0.00032876,5]
[362002831,1747932647649,-420.0,0.00032876,5]
[362002832,1747932647663,-420.0,0.00032876,5]
[362002833,1747932647676,-420.0,0.00032876,5]
[362002834,1747932647689,-420.0,0.00032876,5]
[362002835,1747932647700,-420.0,0.00032876,5]
[362002836,1747932647713,-700.96,0.00032876,5]
[362002837,1747932647725,-420.0,0.00032876,5]
[362002838,1747932647738,-420.48,0.00032876,5]
[362002839,1747932647751,-490.03,0.00032876,5]
[362002840,1747932647764,-420.0,0.00032876,5]
[362002841,1747932647778,-420.0,0.00032876,5]
[362002842,1747932647792,-525.31,0.00032876,5]
[362002843,1747932647804,-420.0,0.00032876,5]
[362002844,1747932647817,-420.0,0.00032876,5]
[362002845,1747932647830,-420.0,0.00032876,5]
[362002846,1747932647843,-420.0,0.00032876,5]
[362002847,1747932647859,-503.8,0.00032876,5]
[362002848,1747932647870,-489.13,0.00032876,5]
[362002849,1747932647883,-420.0,0.00032876,5]
[362002850,1747932647898,-420.0,0.00032876,5]
[362002851,1747932647909,-420.0,0.00032876,5]
[362002852,1747932647921,-420.0,0.00032876,5]
[362002853,1747932647934,-428.81,0.00032876,5]
[362002854,1747932647946,-420.0,0.00032876,5]
[362002855,1747932647958,-420.0,0.00032876,5]
[362002856,1747932647970,-420.0,0.00032876,5]
[362002857,1747932647980,-420.0,0.00032876,5]
[362002858,1747932647992,-420.0,0.00032876,5]
[362002859,1747932648002,-533.21,0.00032876,5]
[362002860,1747932648012,-420.0,0.00032876,5]
[362002861,1747932648023,-420.0,0.00032876,5]
[362002862,1747932648033,-420.0,0.00032876,5]
[362002863,1747932648047,-420.0,0.00032876,5]
[362002864,1747932648061,-420.0,0.00032876,5]
[362002865,1747932648074,-675.11,0.00032876,5]
[362002866,1747932648084,-486.86784976,0.00032876,5]
[362002867,1747932648095,-434.78,0.00032876,5]
[362002868,1747932648105,-444.85240435,0.00032876,5]
[362002869,1747932648117,-420.0,0.00032876,5]
[362002870,1747932648129,-420.0,0.00032876,5]
[362002871,1747932648142,-725.52,0.00032876,5]
[362002872,1747932648155,-420.0,0.00032876,5]
[362002873,1747932648168,-420.0,0.00032876,5]
[362002874,1747932648180,-614.72,0.00032876,5]
[362002875,1747932648191,-420.0,0.00032876,5]
[362002876,1747932648202,-518.33,0.00032876,5]
[362002877,1747932648212,-420.0,0.00032876,5]
[362002878,1747932648224,-420.0,0.00032876,5]
[362002879,1747932648235,-420.0,0.00032876,5]
[362002880,1747932648246,-420.0,0.00032876,5]
[362002881,1747932648258,-706.42,0.00032876,5]
[362002882,1747932648269,-426.27,0.00032876,5]
[362002883,1747932648281,-420.0,0.00032876,5]
[362002884,1747932648292,-420.0,0.00032876,5]
[362002885,1747932648303,-420.0,0.00032876,5]
[362002886,1747932648317,-420.0,0.00032876,5]
[362002887,1747932648328,-420.0,0.00032876,5]
[362002888,1747932648345,-420.0,0.00032876,5]
[362002889,1747932648356,-420.0,0.00032876,5]
[362002890,1747932648367,-644.7,0.00032876,5]
[362002891,1747932648379,-420.0,0.00032876,5]
[362002892,1747932648392,-968.77,0.00032876,5]
[362002893,1747932648403,-420.0,0.00032876,5]
[362002894,1747932648413,-420.0,0.00032876,5]
[362002895,1747932648424,-420.0,0.00032876,5]
[362002896,1747932648435,-503.91,0.00032876,5]
[362002897,1747932648446,-420.0,0.00032876,5]
[362002898,1747932648456,-420.0,0.00032876,5]
[362002899,1747932648467,-509.89,0.00032876,5]
[362002900,1747932648478,-420.0,0.00032876,5]
[362002901,1747932648489,-1239.11,0.00032876,5]
[362002902,1747932648500,-420.0,0.00032876,5]
[362002903,1747932648511,-420.0,0.00032876,5]
[362002904,1747932648523,-420.0,0.00032876,5]
[362002905,1747932648534,-420.0,0.00032876,5]
[362002906,1747932648545,-420.0,0.00032876,5]
[362002907,1747932648555,-670.91,0.00032876,5]
[362002908,1747932648566,-420.0,0.00032876,5]
[362002909,1747932648576,-532.51,0.00032876,5]
[362002910,1747932648587,-420.0,0.00032876,5]
[362002911,1747932648598,-452.79,0.00032876,5]
[362002912,1747932648609,-420.0,0.00032876,5]
[362002913,1747932648619,-420.0,0.00032876,5]
[362002914,1747932648630,-420.0,0.00032876,5]
[362002915,1747932648642,-420.0,0.00032876,5]
[362002916,1747932648652,-151.0,0.00032876,7]
[362002917,1747932648663,-420.0,0.00032876,5]
[362002918,1747932648673,-420.0,0.00032876,5]
[362002919,1747932648684,-490.36,0.00032876,5]
[362002920,1747932648695,-581.66,0.00032876,5]
[362002921,1747932648705,-655.94,0.00032876,5]
[362002922,1747932648716,-420.0,0.00032876,5]
[362002923,1747932648727,-888.38,0.00032876,5]
[362002924,1747932648738,-420.0,0.00032876,5]
[362002925,1747932648749,-420.0,0.00032876,5]
[362002926,1747932648759,-420.0,0.00032876,5]
[362002927,1747932648770,-420.0,0.00032876,5]
[362002928,1747932648780,-420.0,0.00032876,5]
[362002929,1747932648790,-586.32,0.00032876,5]
[362002930,1747932648801,-420.0,0.00032876,5]
[362002931,1747932648811,-420.0,0.00032876,5]
[362002932,1747932648822,-420.0,0.00032876,5]
[362002933,1747932648832,-420.0,0.00032876,5]
[362002934,1747932648843,-420.0,0.00032876,5]
[362002935,1747932648854,-420.0,0.00032876,5]
[362002936,1747932648864,-420.0,0.00032876,5]
[362002937,1747932648875,-420.0,0.00032876,5]
[362002938,1747932648886,-420.0,0.00032876,5]
[362002939,1747932648896,-420.0,0.00032876,5]
[362002940,1747932648907,-530.31,0.00032876,5]
[362002941,1747932648918,-423.53246787,0.00032876,5]
[362002942,1747932648929,-420.0,0.00032876,5]
[362002943,1747932648939,-420.0,0.00032876,5]
[362002944,1747932648950,-420.0,0.00032876,5]
[362002945,1747932648961,-420.0,0.00032876,5]
[362002946,1747932648971,-420.0,0.00032876,5]
[362002947,1747932648982,-420.0,0.00032876,5]
[362002948,1747932648993,-420.0,0.00032876,5]
[362002949,1747932649003,-553.97149733,0.00032876,5]
[362002950,1747932649013,-523.41,0.00032876,5]
[362002951,1747932649024,-420.0,0.00032876,5]
[362002952,1747932649034,-420.0,0.00032876,5]
[362002953,1747932649044,-420.0,0.00032876,5]
[362002954,1747932649056,-611.24,0.00032876,5]
[362002955,1747932649067,-420.0,0.00032876,5]
[362002956,1747932649077,-420.0,0.00032876,5]
[362002957,1747932649088,-506.15,0.00032876,5]
[362002958,1747932649098,-420.0,0.00032876,5]
[362002959,1747932649109,-604.49,0.00032876,5]
[362002960,1747932649119,-420.0,0.00032876,5]
[362002961,1747932649130,-420.0,0.00032876,5]
[362002962,1747932649141,-558.43,0.00032876,5]
[362002963,1747932649152,-420.0,0.00032876,5]
[362002964,1747932649163,-185.95423889,0.00032876,5]
[362002965,1747932649173,-420.0,0.00032876,5]
[362002966,1747932649183,-471.17,0.00032876,5]
[362002967,1747932649194,-506.85,0.00032876,5]
[362002968,1747932649205,-161.06936416,0.00032876,5]
[362002969,1747932649216,-420.0,0.00032876,5]
[362002970,1747932649227,-420.0,0.00032876,5]
[362002971,1747932649237,-420.0,0.00032876,5]
[362002972,1747932649248,-215.09584366,0.00032876,5]
[362002973,1747932649259,-420.0,0.00032876,5]
[362002974,1747932649270,-488.89,0.00032876,5]
[362002975,1747932649281,-420.0,0.00032876,5]
[362002976,1747932649292,-680.18,0.00032876,5]
[362002977,1747932649305,-476.31,0.00032876,5]
[362002978,1747932649319,-668.82,0.00032876,5]
[362002979,1747932649329,-502.71,0.00032876,5]
[362002980,1747932649339,-477.31,0.00032876,5]
[362002981,1747932649350,-420.0,0.00032876,5]
[362002982,1747932649362,-420.0,0.00032876,5]
[362002983,1747932649372,-420.0,0.00032876,5]
[362002984,1747932649382,-420.0,0.00032876,5]
[362002985,1747932649394,-420.0,0.00032876,5]
[362002986,1747932649404,-420.0,0.00032876,5]
[362002987,1747932649415,-420.0,0.00032876,5]
[362002988,1747932649425,-420.0,0.00032876,5]
[362002989,1747932649435,-420.0,0.00032876,5]
[362002990,1747932649445,-243.798934,0.00032876,7]
[362002991,1747932649455,-849.45,0.00032876,5]
[362002992,1747932649466,-420.0,0.00032876,5]
[362002993,1747932649476,-420.0,0.00032876,5]
[362002994,1747932649486,-420.0,0.00032876,5]
[362002995,1747932649496,-420.0,0.00032876,5]
[362002996,1747932649507,-420.0,0.00032876,5]
[362002997,1747932649518,-420.0,0.00032876,5]
[362002998,1747932649528,-420.0,0.00032876,5]
[362002999,1747932649540,-633.62,0.00032876,5]
[362003000,1747932649554,-569.63,0.00032876,5]
[362003001,1747932649570,-420.0,0.00032876,5]
[362003002,1747932649586,-420.0,0.00032876,5]
[362003003,1747932649598,-420.0,0.00032876,5]
[362003004,1747932649608,-420.0,0.00032876,5]
[362003005,1747932649619,-420.0,0.00032876,5]
[362003006,1747932649629,-420.0,0.00032876,5]
[362003007,1747932649639,-151.0,0.00032876,7]
[362003008,1747932649650,-420.0,0.00032876,5]
[362003009,1747932649661,-420.0,0.00032876,5]
[362003010,1747932649672,-496.38,0.00032876,5]
[362003011,1747932649682,-420.0,0.00032876,5]
[362003012,1747932649692,-472.75,0.00032876,5]
[362003013,1747932649703,-420.0,0.00032876,5]
[362003014,1747932649713,-150.764325,0.00032876,5]
[362003015,1747932649724,-574.38,0.00032876,5]
[362003016,1747932649735,-583.56,0.00032876,5]
[362003017,1747932649745,-420.0,0.00032876,5]
[362003018,1747932649755,-420.0,0.00032876,5]
[362003019,1747932649766,-590.87,0.00032876,5]
[362003020,1747932649777,-498.63,0.00032876,5]
[362003021,1747932649787,-420.0,0.00032876,5]
[362003022,1747932649797,-420.0,0.00032876,5]
[362003023,1747932649808,-420.0,0.00032876,5]
[362003024,1747932649818,-420.0,0.00032876,5]
[362003025,1747932649828,-603.09,0.00032876,5]
[362003026,1747932649839,-151.0,0.00032876,7]
[362003027,1747932649850,-420.0,0.00032876,5]
[362003028,1747932649860,-611.86,0.00032876,5]
[362003029,1747932649871,-688.2,0.00032876,5]
[362003030,1747932649883,-420.0,0.00032876,5]
[362003031,1747932649894,-420.0,0.00032876,5]
[362003032,1747932649905,-420.0,0.00032876,5]
[362003033,1747932649915,-420.0,0.00032876,5]
[362003034,1747932649925,-420.0,0.00032876,5]
[362003035,1747932649936,-430.63,0.00032876,5]
[362003036,1747932649947,-420.0,0.00032876,5]
[362003037,1747932649958,-1409.39,0.00032876,5]
[362003038,1747932649969,-555.83,0.00032876,5]
[362003039,1747932649980,-420.0,0.00032876,5]
[362003040,1747932649991,-758.99,0.00032876,5]
[362003041,1747932650003,-420.0,0.00032876,5]
[362003042,1747932650014,-420.0,0.00032876,5]
[362003043,1747932650024,-321.69187334,0.00032876,5]
[362003044,1747932650036,-151.0,0.00032876,7]
[362003045,1747932650046,-420.0,0.00032876,5]
[362003046,1747932650058,-1631.37,0.00032876,5]
[362003047,1747932650068,-420.0,0.00032876,5]
[362003048,1747932650079,-563.57,0.00032876,5]
[362003049,1747932650090,-420.0,0.00032876,5]
[362003050,1747932650100,-420.0,0.00032876,5]
[362003051,1747932650112,-420.0,0.00032876,5]
[362003052,1747932650123,-420.0,0.00032876,5]
[362003053,1747932650135,-742.55,0.00032876,5]
[362003054,1747932650146,-420.0,0.00032876,5]
[362003055,1747932650157,-420.0,0.00032876,5]
[362003056,1747932650169,-479.74,0.00032876,5]
[362003057,1747932650179,-831.88,0.00032876,5]
[362003058,1747932650190,-420.0,0.00032876,5]
[362003059,1747932650201,-420.0,0.00032876,5]
[362003060,1747932650211,-420.0,0.00032876,5]
[362003061,1747932650222,-556.1881876,0.00032876,5]
[362003062,1747932650232,-420.0,0.00032876,5]
[362003063,1747932650242,-420.0,0.00032876,5]
[362003064,1747932650252,-420.0,0.00032876,5]
[362003065,1747932650262,-420.0,0.00032876,5]
[362003066,1747932650273,-420.0,0.00032876,5]
[362003067,1747932650284,-420.0,0.00032876,5]
[362003068,1747932650295,-420.0,0.00032876,5]
[362003069,1747932650307,-151.0,0.00032876,7]
[362003070,1747932650318,-420.0,0.00032876,5]
[362003071,1747932650328,-420.0,0.00032876,5]
[362003072,1747932650339,-597.03,0.00032876,5]
[362003073,1747932650350,-420.0,0.00032876,5]
[362003074,1747932650360,-420.0,0.00032876,5]
[362003075,1747932650371,-420.0,0.00032876,5]
[362003076,1747932650381,-420.0,0.00032876,5]
[362003077,1747932650394,-420.0,0.00032876,5]
[362003078,1747932650405,-420.0,0.00032876,10]
[362003079,1747932650416,-420.0,0.00032876,5]
[362003080,1747932650426,-420.0,0.00032876,5]
[362003081,1747932650436,-420.0,0.00032876,5]
[362003082,1747932650446,-617.89,0.00032876,5]
[362003083,1747932650457,-420.0,0.00032876,5]
[362003084,1747932650467,-1171.62,0.00032876,5]
[362003085,1747932650478,-483.13,0.00032876,5]
[362003086,1747932650488,-571.12,0.00032876,5]
[362003087,1747932650498,-420.0,0.00032876,5]
[362003088,1747932650508,-498.51,0.00032876,5]
[362003089,1747932650518,-420.0,0.00032876,5]
[362003090,1747932650529,-420.0,0.00032876,5]
[362003091,1747932650540,-672.15,0.00032876,5]
[362003092,1747932650551,-420.0,0.00032876,5]
[362003093,1747932650561,-420.0,0.00032876,5]
[362003094,1747932650571,-420.0,0.00032876,5]
[362003095,1747932650583,-613.11,0.00032876,5]
[362003096,1747932650593,-420.0,0.00032876,5]
[362003097,1747932650604,-420.0,0.00032876,5]
[362003098,1747932650615,-420.0,0.00032876,5]
[362003099,1747932650625,-420.0,0.00032876,5]
[362003100,1747932650637,-420.0,0.00032876,5]
[362003101,1747932650649,-420.0,0.00032876,5]
[362003102,1747932650660,-420.0,0.00032876,5]
[362003103,1747932650672,-420.0,0.00032876,5]
[362003104,1747932650682,-476.46489434,0.00032876,5]
[362003105,1747932650693,-449.58,0.00032876,5]
[362003106,1747932650704,-420.0,0.00032876,5]
[362003107,1747932650715,-420.0,0.00032876,5]
[362003108,1747932650725,-420.0,0.00032876,5]
[362003109,1747932650735,-420.0,0.00032876,5]
[362003110,1747932650746,-2000.0,0.00032876,5]
[362003111,1747932650756,-420.0,0.00032876,5]